bitfinex-derivatives/quotes_BTCF0:USTF0_20250117
["timestamp","ask_amount","ask_price","bid_price","bid_amount"]
[1737118775031,0.74596658,102830.0,102820.0,0.409432]
[1737118775429,0.686331,102830.0,102820.0,0.409432]
[1737118775843,0.686331,102830.0,102820.0,0.58348507]
[1737118777639,0.77720311,102830.0,102820.0,0.58348507]
[1737118778235,0.77720311,102830.0,102820.0,0.409432]
[1737118779047,0.048634,102820.0,102810.0,1.02010537]
[1737118779335,0.13950611,102820.0,102810.0,1.02010537]
[1737118779540,0.048634,102820.0,102810.0,1.02010537]
[1737118780035,0.048634,102820.0,102810.0,0.87892086]
[1737118781630,0.048634,102820.0,102810.0,0.88196244]
[1737118781836,0.588634,102820.0,102810.0,0.88196244]
[1737118782040,0.048634,102820.0,102810.0,1.11401906]
[1737118782242,0.048634,102820.0,102810.0,1.11401902]
[1737118784541,0.048634,102820.0,102810.0,1.11097748]
[1737118785739,0.048634,102820.0,102810.0,0.70486779]
[1737118789638,0.048634,102820.0,102810.0,0.34406779]
[1737118789841,0.048634,102820.0,102810.0,0.70486779]
[1737118790357,0.048634,102820.0,102810.0,0.70340911]
[1737118791046,0.13950611,102820.0,102810.0,0.612537]
[1737118791636,0.13950611,102820.0,102810.0,0.61557861]
[1737118792038,0.31430739,102820.0,102810.0,0.61557861]
[1737118792233,0.31430739,102820.0,102810.0,0.61557864]
[1737118792753,0.22343528,102820.0,102810.0,0.61557864]
[1737118792961,0.048634,102820.0,102810.0,1.65630531]
[1737118793247,0.588634,102820.0,102810.0,1.65630531]
[1737118793850,0.588634,102820.0,102810.0,1.33337658]
[1737118795543,0.588634,102820.0,102810.0,1.56575482]
[1737118798449,0.588634,102820.0,102810.0,1.65662693]
[1737118798656,0.588634,102820.0,102810.0,1.66149346]
[1737118798949,0.588634,102820.0,102810.0,1.65662687]
[1737118799546,0.588634,102820.0,102810.0,1.42424863]
[1737118799750,0.048634,102820.0,102810.0,1.42424863]
[1737118800349,0.048634,102820.0,102810.0,1.4242486]
[1737118800657,0.22343328,102830.0,102820.0,0.048635]
[1737118800859,0.17480128,102830.0,102820.0,0.59560711]
[1737118801045,0.57580835,102850.0,102840.0,0.048625]
[1737118801244,0.57580835,102850.0,102840.0,0.50029711]
[1737118801445,0.48560835,102850.0,102840.0,0.50029711]
[1737118801961,0.588621,102850.0,102840.0,0.50029711]
[1737118803352,0.588621,102850.0,102840.0,0.67451616]
[1737118803555,0.588621,102850.0,102840.0,0.58364405]
[1737118803857,0.67949311,102850.0,102840.0,0.58364405]
[1737118804557,0.67949311,102850.0,102840.0,0.81593612]
[1737118805460,0.588621,102850.0,102840.0,0.81593612]
[1737118805762,0.588621,102850.0,102840.0,0.22284405]
[1737118806069,0.588621,102850.0,102840.0,0.58364405]
[1737118807453,0.588621,102850.0,102840.0,0.67451616]
[1737118807969,0.588621,102850.0,102840.0,0.50029711]
[1737118809549,0.588621,102850.0,102840.0,0.60423872]
[1737118809747,0.141413,102870.0,102860.0,0.048616]
[1737118809950,0.54638553,102880.0,102870.0,0.048611]
[1737118810146,0.64098553,102880.0,102870.0,0.50028311]
[1737118810353,0.64098553,102880.0,102870.0,0.409411]
[1737118810761,0.98053274,102880.0,102870.0,0.048611]
[1737118811650,0.97927297,102880.0,102870.0,0.04735112]
[1737118812055,0.77534554,102880.0,102870.0,0.04735112]
[1737118813362,0.68447343,102880.0,102870.0,0.04735112]
[1737118813660,0.683209,102880.0,102870.0,0.04608658]
[1737118813969,0.683209,102880.0,102860.0,0.57017368]
[1737118814263,0.683209,102880.0,102870.0,0.048611]
[1737118815552,0.683209,102880.0,102870.0,0.409411]
[1737118815755,0.54,102880.0,102870.0,0.59115522]
[1737118815962,0.58118635,102900.0,102890.0,0.048602]
[1737118816267,0.58118635,102900.0,102890.0,0.50027411]
[1737118816568,0.58118635,102900.0,102890.0,0.86107411]
[1737118816760,0.43698735,102900.0,102890.0,1.05687411]
[1737118817766,0.146594,102910.0,102900.0,0.048597]
[1737118817958,0.146594,102910.0,102900.0,0.50026911]
[1737118818263,0.15367453,102920.0,102910.0,0.048592]
[1737118818468,0.24454664,102920.0,102910.0,0.409392]
[1737118818769,0.24454664,102920.0,102910.0,0.34139199]
[1737118819469,0.15367453,102920.0,102910.0,0.34139199]
[1737118819760,0.15367453,102920.0,102910.0,0.38998399]
[1737118821056,0.05857453,102920.0,102910.0,0.4808561]
[1737118821363,0.05857453,102920.0,102910.0,0.38998399]
[1737118821561,0.51024664,102920.0,102900.0,0.3608]
[1737118821749,0.67946411,102910.0,102900.0,0.409395]
[1737118821951,0.67946411,102910.0,102900.0,0.50026711]
[1737118821952,0.048592,102910.0,102900.0,0.50026711]
[1737118831761,0.588592,102910.0,102900.0,0.50026711]
[1737118835868,0.45415782,102940.0,102900.0,0.59113922]
[1737118836071,0.05003582,102940.0,102930.0,0.59112722]
[1737118836566,0.05003582,102940.0,102930.0,0.59575511]
[1737118838765,0.05003582,102940.0,102930.0,0.5277551]
[1737118838960,0.05003582,102940.0,102930.0,0.5763381]
[1737118843067,0.05003582,102940.0,102930.0,0.58629992]
[1737118843764,0.05003582,102940.0,102930.0,0.58933803]
[1737118844872,0.05003582,102940.0,102930.0,0.58933801]
[1737118845481,0.05003582,102940.0,102930.0,1.17941008]
[1737118845482,0.00145782,102940.0,102930.0,1.17941008]
[1737118845669,0.409374,102950.0,102940.0,0.048578]
[1737118845870,0.409374,102950.0,102940.0,0.05161609]
[1737118846573,0.409374,102950.0,102940.0,0.22583514]
[1737118848271,0.409374,102950.0,102940.0,0.31670725]
[1737118848778,0.048574,102950.0,102940.0,0.67750725]
[1737118849078,0.40937,102960.0,102950.0,0.048573]
[1737118849273,0.40937,102960.0,102950.0,0.138473]
[1737118850171,0.40937,102960.0,102950.0,0.22934511]
[1737118850570,0.04857,102960.0,102950.0,0.41568276]
[1737118851679,0.409366,102970.0,102960.0,0.048568]
[1737118853372,0.409366,102970.0,102960.0,0.13944011]
[1737118853773,0.409366,102970.0,102960.0,0.0714401]
[1737118853979,0.409366,102970.0,102960.0,0.1200081]
[1737118854184,0.409366,102970.0,102960.0,0.048568]
[1737118854686,0.50023811,102970.0,102960.0,0.048568]
[1737118856279,0.048568,102960.0,102950.0,0.44741905]
[1737118856486,0.13944011,102960.0,102950.0,0.49902651]
[1737118856880,0.13944011,102960.0,102950.0,0.50900941]
[1737118857077,0.048568,102960.0,102950.0,0.50900941]
[1737118858577,0.048568,102960.0,102950.0,0.50597195]
[1737118859989,0.13944011,102960.0,102950.0,0.50597195]
[1737118860186,0.048568,102960.0,102950.0,0.50597195]
[1737118860387,0.048568,102960.0,102950.0,0.3317529]
[1737118861283,0.048568,102960.0,102950.0,0.33479043]
[1737118862678,0.048568,102960.0,102950.0,0.24469043]
[1737118863279,0.13944011,102960.0,102950.0,0.15149043]
[1737118863482,0.23174011,102960.0,102950.0,0.15149043]
[1737118863682,0.59254011,102960.0,102950.0,0.1484529]
[1737118863882,0.048573,102950.0,102940.0,0.22279405]
[1737118864077,0.50024511,102950.0,102940.0,0.22583179]
[1737118864290,0.50024511,102950.0,102940.0,0.22279405]
[1737118865096,0.50024511,102950.0,102940.0,0.22583202]
[1737118865889,0.50024511,102950.0,102940.0,0.048575]
[1737118866289,0.50024511,102950.0,102940.0,0.05161294]
[1737118867190,0.50024511,102950.0,102940.0,0.05647361]
[1737118868597,0.50024511,102950.0,102940.0,0.46298473]
[1737118868901,0.50024511,102950.0,102940.0,0.45812406]
[1737118871099,0.409373,102950.0,102940.0,0.45812406]
[1737118871399,0.048573,102950.0,102940.0,0.55385673]
[1737118872499,0.501671,102960.0,102950.0,0.048573]
[1737118872688,0.140871,102960.0,102950.0,0.23818305]
[1737118873493,0.140871,102960.0,102950.0,0.14731094]
[1737118873689,0.140871,102960.0,102950.0,0.32061462]
[1737118874888,0.140871,102960.0,102950.0,0.6437788]
[1737118875905,0.048571,102960.0,102950.0,0.6437788]
[1737118876093,0.048571,102960.0,102950.0,0.23818305]
[1737118876599,0.048571,102960.0,102950.0,0.23818265]
[1737118876807,0.58282519,102970.0,102950.0,0.28675565]
[1737118877101,0.58282519,102970.0,102960.0,0.13944011]
[1737118877612,0.048565,102970.0,102960.0,0.13944011]
[1737118880302,0.22322809,102970.0,102960.0,0.13944011]
[1737118880708,0.22322809,102970.0,102960.0,0.14944203]
[1737118881501,0.22322809,102970.0,102960.0,0.05856992]
[1737118882299,0.22322809,102970.0,102960.0,0.06160718]
[1737118882813,0.22322809,102970.0,102960.0,0.05856992]
[1737118883310,0.048565,102970.0,102960.0,0.23191917]
[1737118883610,0.13943711,102970.0,102960.0,0.23191917]
[1737118883800,0.13943711,102970.0,102960.0,0.23495643]
[1737118884202,0.50023711,102970.0,102960.0,0.06160718]
[1737118884405,0.50023711,102970.0,102950.0,1.04552758]
[1737118884406,0.048568,102960.0,102950.0,0.45305458]
[1737118884600,0.23124011,102960.0,102950.0,0.45609206]
[1737118884904,0.23124011,102960.0,102950.0,0.45609209]
[1737118884905,0.31974011,102960.0,102950.0,0.45609209]
[1737118885307,0.77054011,102960.0,102950.0,0.45609209]
[1737118885609,0.77054011,102960.0,102950.0,0.45305458]
[1737118885806,0.77054011,102960.0,102950.0,0.22192225]
[1737118886503,0.679668,102960.0,102950.0,0.22495985]
[1737118886704,0.501168,102960.0,102950.0,0.31279436]
[1737118886905,0.140368,102960.0,102950.0,0.40853191]
[1737118887206,0.048568,102960.0,102950.0,0.23518266]
[1737118887701,0.409368,102960.0,102950.0,0.23518266]
[1737118888104,0.409368,102960.0,102950.0,0.49533191]
[1737118888105,0.048568,102960.0,102950.0,0.49533191]
[1737118888302,0.048568,102960.0,102950.0,0.49533182]
[1737118888707,0.409368,102960.0,102950.0,0.49533182]
[1737118888904,0.50024011,102960.0,102950.0,0.31765971]
[1737118889109,0.50024011,102960.0,102950.0,0.31462225]
[1737118890000,0.409368,102960.0,102950.0,0.40549436]
[1737118890605,0.58403109,102960.0,102950.0,0.23214511]
[1737118892606,0.6749032,102960.0,102950.0,0.048573]
[1737118892921,0.048572,102950.0,102930.0,0.52004775]
[1737118893209,0.048572,102950.0,102930.0,0.56862775]
[1737118893210,1.03894911,102940.0,102930.0,0.56862775]
[1737118893609,1.03894911,102940.0,102930.0,0.52004775]
[1737118894199,0.048581,102930.0,102920.0,0.048584]
[1737118894397,0.50025311,102930.0,102920.0,0.048584]
[1737118894801,0.50025311,102930.0,102910.0,0.17585756]
[1737118895008,0.50025811,102920.0,102910.0,0.00145756]
[1737118895306,0.68465811,102920.0,102910.0,0.00145756]
[1737118896408,0.048591,102910.0,102900.0,0.23113233]
[1737118896614,0.58796311,102910.0,102900.0,0.23113233]
[1737118897010,0.58796311,102910.0,102890.0,0.140195]
[1737118897011,0.048593,102900.0,102890.0,0.140195]
[1737118897307,0.048593,102900.0,102890.0,0.23106711]
[1737118897515,0.048593,102900.0,102890.0,0.59490617]
[1737118897707,0.49709,102910.0,102900.0,0.048594]
[1737118897908,0.49709,102910.0,102900.0,0.13946611]
[1737118899515,0.49709,102910.0,102900.0,0.048594]
[1737118899814,0.58796211,102910.0,102900.0,0.048594]
[1737118902516,0.58796211,102910.0,102890.0,0.0916]
[1737118902708,0.45167211,102900.0,102880.0,0.38654014]
[1737118903017,0.500397,102900.0,102890.0,0.048599]
[1737118903207,0.139597,102900.0,102890.0,0.13947111]
[1737118903408,0.4485,102910.0,102890.0,0.13947111]
[1737118903612,0.497091,102910.0,102900.0,0.13946611]
[1737118904419,0.497091,102910.0,102900.0,0.048594]
[1737118906221,0.497091,102910.0,102890.0,0.45167211]
[1737118906406,0.048594,102900.0,102890.0,0.048597]
[1737118906814,0.048594,102900.0,102890.0,0.13946911]
[1737118907025,0.048594,102900.0,102890.0,0.50026911]
[1737118907922,0.048594,102900.0,102890.0,0.13946911]
[1737118908115,0.4485,102910.0,102890.0,0.13946911]
[1737118908319,0.497093,102910.0,102900.0,0.13946611]
[1737118908720,0.497093,102910.0,102900.0,0.22716611]
[1737118913233,0.497093,102910.0,102900.0,0.136294]
[1737118913625,0.409386,102920.0,102910.0,0.04859]
[1737118913925,0.50025811,102920.0,102910.0,0.04859]
[1737118914230,0.68665811,102920.0,102910.0,0.04859]
[1737118914418,0.595786,102920.0,102910.0,0.04859]
[1737118915529,0.68665811,102920.0,102910.0,0.04859]
[1737118916126,0.04859,102910.0,102900.0,0.048592]
[1737118917617,0.04859,102910.0,102900.0,0.13946411]
[1737118918233,0.04859,102910.0,102900.0,0.14250315]
[1737118918739,0.04859,102910.0,102900.0,0.23670303]
[1737118919228,0.04859,102910.0,102900.0,0.14583092]
[1737118919428,0.04859,102910.0,102900.0,0.048592]
[1737118920025,0.04859,102910.0,102900.0,0.05163104]
[1737118920225,0.40939,102910.0,102900.0,0.05163104]
[1737118920426,0.04859,102910.0,102900.0,0.05163104]
[1737118922522,0.13699,102910.0,102900.0,0.05163104]
[1737118923430,0.13699,102910.0,102900.0,0.0564934]
[1737118923628,0.13699,102910.0,102900.0,0.28762573]
[1737118924137,0.13699,102910.0,102900.0,0.64052433]
[1737118924343,0.13699,102910.0,102900.0,0.64842561]
[1737118924636,0.13699,102910.0,102900.0,0.28762566]
[1737118925335,0.13699,102910.0,102900.0,0.99010529]
[1737118925932,0.13699,102910.0,102900.0,1.0809774]
[1737118926429,0.13699,102910.0,102900.0,0.37849777]
[1737118926831,0.13699,102910.0,102900.0,0.37363541]
[1737118927138,0.3608,102920.0,102910.0,0.04859]
[1737118927439,0.58338552,102930.0,102920.0,0.048585]
[1737118927639,0.67425763,102930.0,102920.0,0.048585]
[1737118928838,0.72284263,102930.0,102920.0,0.048585]
[1737118929040,0.67425763,102930.0,102920.0,0.048585]
[1737118929741,0.58338552,102930.0,102920.0,0.048585]
[1737118929944,0.67425763,102930.0,102920.0,0.048585]
[1737118932149,0.58338552,102930.0,102920.0,0.048585]
[1737118933645,0.67425763,102930.0,102920.0,0.048585]
[1737118935249,0.58338552,102930.0,102920.0,0.048585]
[1737118935447,0.409382,102930.0,102920.0,0.048585]
[1737118935638,0.50025411,102930.0,102920.0,0.048585]
[1737118936646,0.409382,102930.0,102920.0,0.048585]
[1737118937044,0.409382,102930.0,102920.0,0.13945711]
[1737118937247,0.048582,102930.0,102920.0,0.13945711]
[1737118937441,1.05101309,102940.0,102930.0,0.04858]
[1737118937851,1.1418852,102940.0,102930.0,0.04858]
[1737118938749,1.1418852,102940.0,102920.0,0.12286499]
[1737118938951,0.13945211,102930.0,102920.0,0.12286499]
[1737118939141,0.04858,102930.0,102920.0,0.12286499]
[1737118939343,0.04858,102930.0,102920.0,0.03220345]
[1737118941046,0.04858,102930.0,102920.0,0.0322034]
[1737118941958,0.04858,102930.0,102920.0,0.48387551]
[1737118942154,0.04858,102930.0,102920.0,0.57877551]
[1737118942757,0.72181597,102940.0,102930.0,0.04858]
[1737118942965,0.76410808,102940.0,102930.0,0.04858]
[1737118943859,0.81268808,102940.0,102930.0,0.04858]
[1737118944059,0.76410808,102940.0,102930.0,0.04858]
[1737118945848,0.31243597,102940.0,102930.0,0.13945211]
[1737118946167,0.05003597,102940.0,102930.0,0.50329014]
[1737118946348,0.05003597,102940.0,102930.0,0.49941803]
[1737118946863,0.05003597,102940.0,102930.0,0.59029011]
[1737118947265,0.05003597,102940.0,102930.0,0.138618]
[1737118947764,0.86107352,102960.0,102940.0,0.048576]
[1737118947955,0.048571,102950.0,102940.0,0.13944311]
[1737118948151,0.048571,102950.0,102940.0,0.048571]
[1737118948563,0.048571,102950.0,102940.0,0.50024311]
[1737118948757,0.048571,102950.0,102940.0,0.34137099]
[1737118949060,0.048571,102950.0,102940.0,0.4322431]
[1737118949262,0.048571,102950.0,102940.0,0.43528083]
[1737118949760,0.048571,102950.0,102940.0,0.48385183]
[1737118950059,0.048571,102950.0,102940.0,0.4808141]
[1737118954179,0.409371,102950.0,102940.0,0.048571]
[1737118954390,0.50024311,102950.0,102940.0,0.048571]
[1737118954885,0.67424663,102950.0,102940.0,0.048571]
[1737118955382,0.048576,102940.0,102930.0,0.14560896]
[1737118955581,0.048576,102940.0,102930.0,0.135578]
[1737118955582,0.59094811,102940.0,102930.0,0.135578]
[1737118956685,0.500076,102940.0,102930.0,0.135578]
[1737118959891,0.59094811,102940.0,102930.0,0.048578]
[1737118960085,0.76954811,102940.0,102930.0,0.048578]
[1737118961286,0.317876,102940.0,102930.0,0.048578]
[1737118961491,0.678676,102940.0,102930.0,0.048578]
[1737118961682,0.500076,102940.0,102930.0,0.13945011]
[1737118962087,0.500076,102940.0,102930.0,0.22615011]
[1737118964991,0.67407952,102940.0,102930.0,0.22615011]
[1737118966794,0.31327952,102940.0,102930.0,0.22918833]
[1737118967385,0.67407952,102940.0,102930.0,0.22918833]
[1737118967689,0.67407952,102940.0,102930.0,0.135278]
[1737118967690,0.31327952,102940.0,102930.0,0.135278]
[1737118967895,0.500076,102940.0,102930.0,0.135278]
[1737118969990,0.67407952,102940.0,102930.0,0.135278]
[1737118972190,0.67407952,102940.0,102930.0,0.22615011]
[1737118973193,0.409376,102940.0,102930.0,0.22615011]
[1737118973397,0.409376,102940.0,102930.0,0.22918834]
[1737118974697,0.53480352,102950.0,102940.0,0.048577]
[1737118974902,0.58337652,102950.0,102940.0,0.13944911]
[1737118975195,0.53480352,102950.0,102940.0,0.14248711]
[1737118975387,0.22257652,102950.0,102940.0,0.14248711]
[1737118976099,0.22257652,102950.0,102940.0,0.50814757]
[1737118976100,0.17400352,102950.0,102940.0,0.50814757]
[1737118976309,0.17400352,102950.0,102940.0,0.60224757]
[1737118976788,0.678067,102960.0,102950.0,0.048573]
[1737118976985,0.678067,102960.0,102950.0,0.14248311]
[1737118977188,0.678067,102960.0,102950.0,0.13944511]
[1737118977389,0.678067,102960.0,102950.0,0.14248279]
[1737118977598,0.678067,102960.0,102950.0,0.13944511]
[1737118978194,0.3608,102960.0,102950.0,0.14248279]
[1737118978400,0.3608,102960.0,102950.0,0.23978279]
[1737118978611,0.67569688,102970.0,102960.0,0.048568]
[1737118978793,0.67569688,102970.0,102960.0,0.05160568]
[1737118979198,0.50169336,102970.0,102960.0,0.05160568]
[1737118979399,0.50169336,102970.0,102960.0,0.048568]
[1737118979889,0.51164444,102970.0,102960.0,0.048568]
[1737118980291,0.68564796,102970.0,102960.0,0.048568]
[1737118981405,0.51164444,102970.0,102960.0,0.048568]
[1737118982298,0.51164444,102970.0,102950.0,0.048573]
[1737118982499,0.82634422,102960.0,102950.0,0.048573]
[1737118982803,0.78404011,102960.0,102950.0,0.048573]
[1737118983399,0.048572,102950.0,102940.0,0.05849871]
[1737118983603,0.50024411,102950.0,102940.0,0.05849871]
[1737118983808,0.048572,102950.0,102940.0,0.41929871]
[1737118984101,0.048572,102950.0,102940.0,0.05849871]
[1737118984406,0.048572,102950.0,102940.0,0.41929871]
[1737118984602,0.048572,102950.0,102940.0,0.05849871]
[1737118985004,0.048572,102950.0,102940.0,0.51320844]
[1737118985803,0.50024411,102950.0,102940.0,0.048577]
[1737118986499,0.04858,102940.0,102930.0,0.048579]
[1737118986803,0.13918,102940.0,102930.0,0.06147352]
[1737118988504,0.13918,102940.0,102930.0,0.15234563]
[1737118988707,0.13918,102940.0,102930.0,0.15234568]
[1737118989609,0.13918,102940.0,102930.0,0.06147357]
[1737118989802,0.59085211,102940.0,102930.0,0.06147357]
[1737118990007,0.77165211,102940.0,102930.0,0.00303809]
[1737118990201,0.048582,102930.0,102920.0,0.36796787]
[1737118990404,0.048582,102930.0,102920.0,0.47145678]
[1737118990605,0.048582,102930.0,102920.0,0.83711789]
[1737118990795,0.048582,102930.0,102920.0,0.83711788]
[1737118991001,0.319981,102940.0,102930.0,0.048582]
[1737118991205,0.319981,102940.0,102930.0,0.0516203]
[1737118991704,0.41085311,102940.0,102930.0,0.0516203]
[1737118992207,0.319981,102940.0,102930.0,0.0516203]
[1737118992812,0.680781,102940.0,102930.0,0.05162006]
[1737118995304,0.680781,102940.0,102930.0,0.05162024]
[1737118996306,0.319981,102940.0,102930.0,0.05162024]
[1737118996613,0.77165311,102940.0,102930.0,0.05162024]
[1737118998611,0.77165311,102940.0,102930.0,0.00303824]
[1737118998808,0.77165311,102940.0,102930.0,0.00303827]
[1737119000013,0.680781,102940.0,102930.0,0.05162027]
[1737119002412,0.499981,102940.0,102930.0,0.13945411]
[1737119002614,0.22305154,102950.0,102930.0,0.64274639]
[1737119002913,0.22305154,102950.0,102940.0,0.59054911]
[1737119003111,0.17447954,102950.0,102940.0,0.59358682]
[1737119003318,0.17447954,102950.0,102940.0,0.68544911]
[1737119003517,0.86684854,102960.0,102950.0,0.048572]
[1737119003717,0.86684854,102960.0,102940.0,0.6660211]
[1737119003918,0.86684854,102960.0,102950.0,0.048572]
[1737119004507,0.95772065,102960.0,102950.0,0.048572]
[1737119007527,0.048572,102950.0,102940.0,0.048576]
[1737119007716,0.50024411,102950.0,102940.0,0.048576]
[1737119008325,0.048577,102940.0,102930.0,0.37256287]
[1737119008526,0.048577,102940.0,102930.0,0.37560097]
[1737119008729,0.048577,102940.0,102930.0,0.1442171]
[1737119008922,0.409377,102940.0,102930.0,0.1442171]
[1737119009228,0.409377,102940.0,102930.0,0.14421717]
[1737119009424,0.048577,102940.0,102930.0,0.14421717]
[1737119009615,0.048577,102940.0,102930.0,0.23508928]
[1737119010325,0.048577,102940.0,102930.0,0.24501403]
[1737119013524,0.048577,102940.0,102930.0,0.41835589]
[1737119015131,0.048577,102940.0,102930.0,0.41835582]
[1737119016037,0.048577,102940.0,102930.0,0.42321667]
[1737119016826,0.048577,102940.0,102930.0,0.65460054]
[1737119017421,0.048577,102940.0,102930.0,0.64973969]
[1737119017624,0.048577,102940.0,102930.0,0.56200048]
[1737119019037,0.409372,102950.0,102940.0,0.048577]
[1737119019335,0.409372,102950.0,102940.0,0.23318721]
[1737119019835,0.048572,102950.0,102940.0,0.40653915]
[1737119021039,0.048572,102950.0,102940.0,0.76733915]
[1737119021233,0.692369,102960.0,102950.0,0.048572]
[1737119021536,0.505069,102960.0,102950.0,0.048572]
[1737119021737,0.505069,102960.0,102950.0,0.05160969]
[1737119021933,0.505069,102960.0,102950.0,0.1424818]
[1737119022532,0.67954854,102960.0,102950.0,0.13944411]
[1737119023228,0.67954854,102960.0,102950.0,0.14248177]
[1737119023435,0.67954854,102960.0,102950.0,0.13944411]
[1737119023640,0.67954854,102960.0,102950.0,0.048572]
[1737119023837,0.67954854,102960.0,102950.0,0.13944411]
[1737119024439,0.67954854,102960.0,102950.0,0.14248177]
[1737119025846,0.505069,102960.0,102950.0,0.14248177]
[1737119030750,0.505069,102960.0,102950.0,0.15247369]
[1737119031461,0.505069,102960.0,102950.0,0.15247368]
[1737119031855,0.144269,102960.0,102950.0,0.15247368]
[1737119032156,0.144269,102960.0,102950.0,0.51327368]
[1737119032349,0.144269,102960.0,102950.0,0.68662562]
[1737119032755,0.73543511,102970.0,102950.0,0.68662562]
[1737119032944,0.78400211,102970.0,102960.0,0.13944011]
[1737119033860,0.78400211,102970.0,102960.0,0.0714401]
[1737119037353,0.78400211,102970.0,102960.0,0.16751196]
[1737119037555,0.78400211,102970.0,102960.0,0.17054935]
[1737119038163,0.60952257,102970.0,102960.0,0.17054935]
[1737119038861,0.66899455,102970.0,102960.0,0.11107737]
[1737119039363,0.70015274,102970.0,102960.0,0.05160539]
[1737119039563,0.70015274,102970.0,102960.0,0.048568]
[1737119040655,0.87463228,102970.0,102960.0,0.048568]
[1737119044059,0.70015274,102970.0,102960.0,0.048568]
[1737119046767,0.90392634,102970.0,102960.0,0.048568]
[1737119048068,0.87482901,102970.0,102960.0,0.048568]
[1737119048970,0.87482901,102970.0,102960.0,0.05160556]
[1737119049161,0.87482901,102970.0,102960.0,0.00303756]
[1737119049558,0.92339601,102970.0,102950.0,0.45330781]
[1737119049761,0.54423017,102960.0,102950.0,0.45330781]
[1737119050161,0.54423017,102960.0,102950.0,0.27995587]
[1737119050357,0.3608,102960.0,102950.0,0.37058604]
[1737119050662,0.17467627,102970.0,102960.0,0.048568]
[1737119050860,3.2037736,102980.0,102960.0,0.91130821]
[1737119051161,3.2037736,102980.0,102970.0,0.49999317]
[1737119051362,3.0,102980.0,102970.0,0.50788859]
[1737119052866,3.0,102980.0,102970.0,1.24227504]
[1737119052867,1.85361475,102980.0,102970.0,1.24227504]
[1737119053165,1.85361475,102980.0,102970.0,1.24227393]
[1737119054370,1.70786536,102980.0,102970.0,1.24227393]
[1737119054765,1.70786536,102980.0,102970.0,1.22284068]
[1737119055268,1.70786536,102980.0,102970.0,0.80894888]
[1737119055658,1.70786536,102980.0,102970.0,0.8040907]
[1737119056459,1.70786536,102980.0,102970.0,0.91896499]
[1737119057159,1.70786536,102980.0,102970.0,0.90378288]
[1737119057472,1.70786536,102980.0,102970.0,0.91896521]
[1737119057673,1.70786536,102980.0,102970.0,0.68822823]
[1737119058674,1.70786536,102980.0,102970.0,0.67608236]
[1737119059771,1.70786536,102980.0,102970.0,0.50302963]
[1737119061984,1.70786536,102980.0,102970.0,0.51517543]
[1737119062763,1.70786536,102980.0,102970.0,0.52003374]
[1737119063364,1.70786536,102980.0,102970.0,0.91896511]
[1737119063671,1.70786536,102980.0,102970.0,0.92382342]
[1737119063874,1.70786536,102980.0,102970.0,0.92382305]
[1737119064769,1.70786536,102980.0,102970.0,0.75077032]
[1737119066572,1.70786536,102980.0,102970.0,0.77020206]
[1737119067369,1.70786536,102980.0,102970.0,0.77020055]
[1737119067577,1.61006536,102980.0,102970.0,0.77020055]
[1737119067769,0.73052436,102980.0,102970.0,0.77020055]
[1737119067967,0.42295736,102980.0,102970.0,0.77020055]
[1737119068176,0.08286536,102980.0,102970.0,0.77627286]
[1737119068561,0.08286536,102980.0,102970.0,1.46883754]
[1737119069078,0.1,103000.0,102990.0,0.048554]
[1737119069269,0.1,103000.0,102990.0,0.49998417]
[1737119073283,0.1,103000.0,102990.0,0.409354]
[1737119073782,0.23917917,103000.0,102990.0,0.048554]
[1737119074173,0.59997917,103000.0,102990.0,0.048554]
[1737119074476,0.59997917,103000.0,102990.0,0.05815989]
[1737119074682,0.59997917,103000.0,102990.0,0.048554]
[1737119077281,0.509349,103000.0,102990.0,0.048554]
[1737119077683,0.1,103000.0,102990.0,0.048554]
[1737119078588,0.1,103000.0,102990.0,0.13918417]
[1737119080280,0.1,103000.0,102990.0,0.14222038]
[1737119081581,0.1,103000.0,102990.0,0.50787814]
[1737119082180,0.1,103000.0,102990.0,0.64798495]
[1737119082380,0.1,103000.0,102990.0,0.73861512]
[1737119084190,0.1,103000.0,102990.0,0.73375729]
[1737119085689,0.1,103000.0,102990.0,0.73375724]
[1737119085890,0.1,103000.0,102990.0,0.73861499]
[1737119086093,0.1,103000.0,102990.0,0.9122387]
[1737119087093,0.1,103000.0,102990.0,0.73861499]
[1737119087992,0.1,103000.0,102990.0,0.82924513]
[1737119088192,1e-06,103000.0,102990.0,0.95111889]
[1737119088495,1e-06,103000.0,102990.0,0.95719057]
[1737119088997,1e-06,103000.0,102990.0,0.95719071]
[1737119089493,1e-06,103000.0,102990.0,1.4155541]
[1737119090290,1e-06,103000.0,102990.0,1.32492393]
[1737119090996,1e-06,103000.0,102990.0,1.31885211]
[1737119091192,0.49998017,103000.0,102990.0,0.74069045]
[1737119091392,0.49998017,103000.0,102990.0,0.73765437]
[1737119091702,0.77698017,103000.0,102990.0,0.73765437]
[1737119092000,0.95092716,103000.0,102990.0,0.048554]
[1737119092794,0.77698017,103000.0,102990.0,0.048554]
[1737119094295,0.7867831,103000.0,102990.0,0.048554]
[1737119095398,0.9905567,103000.0,102990.0,0.048554]
[1737119096197,0.98075377,103000.0,102990.0,0.048554]
[1737119096693,0.8901236,103000.0,102990.0,0.048554]
[1737119096891,0.8415746,103000.0,102990.0,0.13918417]
[1737119097091,0.68635,103000.0,102990.0,0.13918417]
[1737119097699,0.32555,103000.0,102990.0,0.13918417]
[1737119098095,0.68635,103000.0,102990.0,0.13918417]
[1737119098399,0.86079761,103000.0,102990.0,0.13918417]
[1737119100205,0.81224861,103000.0,102990.0,0.13918417]
[1737119101303,0.45144861,103000.0,102990.0,0.13918417]
[1737119101503,0.45144861,103000.0,102990.0,0.14222049]
[1737119102107,0.277001,103000.0,102990.0,0.23285066]
[1737119102291,0.277001,103000.0,102990.0,0.13918417]
[1737119102606,0.32555,103000.0,102990.0,0.1422205]
[1737119102906,0.32555,103000.0,102990.0,0.14222046]
[1737119104615,0.68635,103000.0,102990.0,0.13918417]
[1737119105200,0.04855,103000.0,102990.0,0.22981434]
[1737119105396,0.04855,103000.0,102990.0,0.14222048]
[1737119105601,0.04855,103000.0,102990.0,0.14222049]
[1737119106503,1e-06,103000.0,102990.0,0.59365066]
[1737119106897,1e-06,103000.0,102990.0,0.59061434]
[1737119107102,1e-06,103000.0,102990.0,0.59365051]
[1737119107301,1e-06,103000.0,102990.0,0.76727741]
[1737119108309,1e-06,103000.0,102990.0,0.59365051]
[1737119110119,1e-06,103000.0,102990.0,0.59365047]